[Event "MCR rapid mládeže 2023 U16"]
[Site "Harachov, Czech Republic"]
[Date "2023.09.10"]
[Round "9.37"]
[White "Hamernikova, Iris"]
[Black "Najdkova, Laura"]
[Result "0-1"]
[TimeControl "20min+5s/move"]
[WhiteElo "1387"]
[BlackElo "1331"]

1. e4 {[%clk 00:20:08]} {[%emt 00:00:01]} e5 {[%clk 00:20:10]} {[%emt
00:00:01]} 2. Nf3 {[%clk 00:20:12]} {[%emt 00:00:01]} Nc6 {[%clk 00:20:13]}
{[%emt 00:00:01]} 3. d4 {[%clk 00:20:16]} {[%emt 00:00:01]} exd4 {[%clk
00:20:16]} {[%emt 00:00:02]} 4. Bc4 {[%clk 00:20:20]} {[%emt 00:00:01]} Nf6
{[%clk 00:20:14]} {[%emt 00:00:07]} 5. e5 {[%clk 00:20:23]} {[%emt 00:00:02]}
d5 {[%clk 00:20:17]} {[%emt 00:00:01]} 6. Bb5 {[%clk 00:20:27]} {[%emt
00:00:02]} Bb4+ {[%clk 00:19:57]} {[%emt 00:00:24]} 7. c3 {[%clk 00:20:24]}
{[%emt 00:00:09]} dxc3 {[%clk 00:19:34]} {[%emt 00:00:26]} 8. Nxc3 {[%clk
00:20:24]} {[%emt 00:00:07]} Ne4 {[%clk 00:19:29]} {[%emt 00:00:10]} 9. Bd2
{[%clk 00:20:16]} {[%emt 00:00:11]} Nxd2 {[%clk 00:19:19]} {[%emt 00:00:17]} 10.
Qxd2 {[%clk 00:20:11]} {[%emt 00:00:11]} Bxc3 {[%clk 00:18:07]} {[%emt
00:01:16]} 11. Qxc3 {[%clk 00:20:02]} {[%emt 00:00:09]} Bd7 {[%clk 00:16:33]}
{[%emt 00:01:44]} 12. O-O {[%clk 00:20:00]} {[%emt 00:00:08]} O-O {[%clk
00:16:31]} {[%emt 00:00:07]} 13. Rae1 {[%clk 00:19:47]} {[%emt 00:00:16]} Re8
{[%clk 00:16:31]} {[%emt 00:00:06]} 14. Bxc6 {[%clk 00:19:50]} {[%emt
00:00:02]} Bxc6 {[%clk 00:16:33]} {[%emt 00:00:03]} 15. Nd4 {[%clk 00:19:50]}
{[%emt 00:00:05]} Bd7 {[%clk 00:15:33]} {[%emt 00:01:05]} 16. Re3 {[%clk
00:19:10]} {[%emt 00:00:44]} Rc8 {[%clk 00:13:33]} {[%emt 00:02:05]} 17. Rg3
{[%clk 00:18:36]} {[%emt 00:00:38]} c5 {[%clk 00:13:25]} {[%emt 00:00:15]} 18.
Nb3 {[%clk 00:18:19]} {[%emt 00:00:15]} d4 {[%clk 00:13:00]} {[%emt 00:00:36]}
19. Qc2 {[%clk 00:18:07]} {[%emt 00:00:15]} Rxe5 {[%clk 00:12:38]} {[%emt
00:00:31]} 20. h3 {[%clk 00:17:27]} {[%emt 00:00:44]} Qf6 {[%clk 00:12:19]}
{[%emt 00:00:24]} 21. Rf3 {[%clk 00:16:48]} {[%emt 00:00:43]} Bf5 {[%clk
00:11:23]} {[%emt 00:01:00]} 22. Qc4 {[%clk 00:16:22]} {[%emt 00:00:33]} Qg6
{[%clk 00:09:34]} {[%emt 00:01:54]} 23. Rg3 {[%clk 00:16:14]} {[%emt 00:00:10]}
Qf6 {[%clk 00:09:12]} {[%emt 00:00:30]} 24. Qc1 {[%clk 00:14:49]} {[%emt
00:01:24]} b6 {[%clk 00:08:02]} {[%emt 00:01:22]} 25. Rf3 {[%clk 00:14:35]}
{[%emt 00:00:19]} Rce8 {[%clk 00:06:13]} {[%emt 00:01:53]} 26. Nd2 {[%clk
00:13:16]} {[%emt 00:01:22]} Qh6 {[%clk 00:05:48]} {[%emt 00:00:24]} 27. Nc4
{[%clk 00:12:44]} {[%emt 00:00:44]} Qxc1 {[%clk 00:05:38]} {[%emt 00:00:15]} 28.
Rxc1 {[%clk 00:12:44]} {[%emt 00:00:05]} Re1+ {[%clk 00:05:39]} {[%emt
00:00:04]} 29. Rxe1 {[%clk 00:12:47]} {[%emt 00:00:01]} Rxe1+ {[%clk 00:05:42]}
{[%emt 00:00:03]} 30. Kh2 {[%clk 00:12:50]} {[%emt 00:00:01]} Be6 {[%clk
00:05:41]} {[%emt 00:00:07]} 31. b3 {[%clk 00:12:25]} {[%emt 00:00:30]} Re2
{[%clk 00:05:34]} {[%emt 00:00:11]} 32. a4 {[%clk 00:12:22]} {[%emt 00:00:08]}
Bxc4 {[%clk 00:05:37]} {[%emt 00:00:02]} 33. bxc4 {[%clk 00:12:26]} {[%emt
00:00:02]} Rc2 {[%clk 00:05:39]} {[%emt 00:00:03]} 34. Rf4 {[%clk 00:12:24]}
{[%emt 00:00:06]} Rxc4 {[%clk 00:05:38]} {[%emt 00:00:06]} 35. Re4 {[%clk
00:12:28]} {[%emt 00:00:01]} Kf8 {[%clk 00:05:42]} {[%emt 00:00:02]} 36. Rh4
{[%clk 00:12:26]} {[%emt 00:00:07]} h6 {[%clk 00:05:45]} {[%emt 00:00:01]} 37.
Re4 {[%clk 00:12:15]} {[%emt 00:00:16]} Rxa4 {[%clk 00:05:49]} {[%emt
00:00:01]} 38. Kg3 {[%clk 00:12:15]} {[%emt 00:00:04]} f6 {[%clk 00:05:53]}
{[%emt 00:00:02]} 39. Kf3 {[%clk 00:12:19]} {[%emt 00:00:02]} Ra3+ {[%clk
00:05:53]} {[%emt 00:00:04]} 40. Ke2 {[%clk 00:12:18]} {[%emt 00:00:05]} Kf7
{[%clk 00:05:55]} {[%emt 00:00:04]} 41. Kd1 {[%clk 00:12:03]} {[%emt 00:00:20]}
Ra2 {[%clk 00:05:56]} {[%emt 00:00:03]} 42. Ke1 {[%clk 00:11:52]} {[%emt
00:00:17]} h5 {[%clk 00:05:52]} {[%emt 00:00:09]} 43. g4 {[%clk 00:11:55]}
{[%emt 00:00:02]} hxg4 {[%clk 00:05:56]} {[%emt 00:00:01]} 44. hxg4 {[%clk
00:11:59]} {[%emt 00:00:01]} g6 {[%clk 00:05:58]} {[%emt 00:00:03]} 45. f4
{[%clk 00:12:02]} {[%emt 00:00:02]} f5 {[%clk 00:06:00]} {[%emt 00:00:04]} 46.
gxf5 {[%clk 00:12:04]} {[%emt 00:00:03]} gxf5 {[%clk 00:06:04]} 47. Re5 {[%clk
00:11:57]} {[%emt 00:00:12]} Kf6 {[%clk 00:06:07]} {[%emt 00:00:02]} 48. Kd1
{[%clk 00:11:56]} {[%emt 00:00:05]} Ra4 {[%clk 00:06:03]} {[%emt 00:00:09]} 49.
Kd2 {[%clk 00:11:59]} {[%emt 00:00:01]} d3 {[%clk 00:06:06]} {[%emt 00:00:03]}
50. Rd5 {[%clk 00:12:02]} {[%emt 00:00:02]} Rxf4 {[%clk 00:05:44]} {[%emt
00:00:27]} 51. Kxd3 {[%clk 00:12:02]} {[%emt 00:00:05]} Rd4+ {[%clk 00:05:47]}
{[%emt 00:00:02]} 0-1

[Event "MCR rapid mládeže 2023 U16"]
[Site "Harachov, Czech Republic"]
[Date "2023.09.10"]
[Round "9.40"]
[White "Chmelova, Klara"]
[Black "Martikanova, Amalie"]
[Result "0-1"]
[TimeControl "20min+5s/move"]
[WhiteElo "1145"]
[BlackElo "1107"]

1. e4 {[%clk 00:20:07]} {[%emt 00:00:02]} d5 {[%clk 00:20:07]} {[%emt
00:00:03]} 2. exd5 {[%clk 00:20:09]} {[%emt 00:00:03]} Nf6 {[%clk 00:20:10]}
{[%emt 00:00:03]} 3. Nc3 {[%clk 00:20:12]} {[%emt 00:00:02]} Nxd5 {[%clk
00:20:13]} {[%emt 00:00:02]} 4. Bc4 {[%clk 00:20:07]} {[%emt 00:00:10]} Nxc3
{[%clk 00:20:12]} {[%emt 00:00:05]} 5. bxc3 {[%clk 00:20:04]} {[%emt 00:00:08]}
Bf5 {[%clk 00:20:05]} {[%emt 00:00:12]} 6. d4 {[%clk 00:20:04]} {[%emt
00:00:06]} e6 {[%clk 00:19:57]} {[%emt 00:00:12]} 7. Nf3 {[%clk 00:19:57]}
{[%emt 00:00:10]} c5 {[%clk 00:19:32]} {[%emt 00:00:27]} 8. Be3 {[%clk
00:19:50]} {[%emt 00:00:16]} Nd7 {[%clk 00:19:25]} {[%emt 00:00:12]} 9. O-O
{[%clk 00:19:37]} {[%emt 00:00:21]} cxd4 {[%clk 00:19:19]} {[%emt 00:00:19]} 10.
Bxd4 {[%clk 00:19:28]} {[%emt 00:00:13]} Rc8 {[%clk 00:18:24]} {[%emt
00:01:01]} 11. Bb5 {[%clk 00:19:15]} {[%emt 00:00:18]} f6 {[%clk 00:17:20]}
{[%emt 00:01:08]} 12. Qd2 {[%clk 00:18:43]} {[%emt 00:00:37]} a6 {[%clk
00:16:41]} {[%emt 00:00:45]} 13. Ba4 {[%clk 00:18:25]} {[%emt 00:00:21]} Be7
{[%clk 00:16:17]} {[%emt 00:00:30]} 14. Bb6 {[%clk 00:16:16]} {[%emt 00:02:15]}
Qxb6 {[%clk 00:13:39]} {[%emt 00:02:42]} 15. Bxd7+ {[%clk 00:16:16]} {[%emt
00:00:06]} Kf7 {[%clk 00:13:39]} {[%emt 00:00:02]} 16. Bxc8 {[%clk 00:16:18]}
{[%emt 00:00:06]} Rxc8 {[%clk 00:13:41]} {[%emt 00:00:02]} 17. Nd4 {[%clk
00:16:06]} {[%emt 00:00:18]} Rd8 {[%clk 00:13:34]} {[%emt 00:00:11]} 18. Rab1
{[%clk 00:15:50]} {[%emt 00:00:22]} Qc7 {[%clk 00:13:01]} {[%emt 00:00:34]} 19.
Qe2 {[%clk 00:14:48]} {[%emt 00:01:01]} Qxc3 {[%clk 00:12:35]} {[%emt
00:00:40]} 20. Nxf5 {[%clk 00:14:41]} {[%emt 00:00:12]} exf5 {[%clk 00:12:28]}
{[%emt 00:00:12]} 21. Qh5+ {[%clk 00:14:37]} {[%emt 00:00:09]} Kg8 {[%clk
00:11:57]} {[%emt 00:00:34]} 22. Qxf5 {[%clk 00:14:24]} {[%emt 00:00:20]} b5
{[%clk 00:11:48]} {[%emt 00:00:14]} 23. Qe6+ {[%clk 00:14:22]} {[%emt
00:00:07]} Kf8 {[%clk 00:11:37]} {[%emt 00:00:10]} 24. Qxa6 {[%clk 00:14:07]}
{[%emt 00:00:27]} Qxc2 {[%clk 00:11:27]} {[%emt 00:00:15]} 25. Qxb5 {[%clk
00:13:51]} {[%emt 00:00:20]} Qxa2 {[%clk 00:11:17]} {[%emt 00:00:14]} 26. Rfe1
{[%clk 00:13:08]} {[%emt 00:00:45]} Qd2 {[%clk 00:10:12]} {[%emt 00:01:08]} 27.
Rbd1 {[%clk 00:12:35]} {[%emt 00:00:43]} Qxd1 {[%clk 00:09:38]} {[%emt
00:00:39]} 28. Rxd1 {[%clk 00:12:00]} {[%emt 00:00:42]} Rxd1+ {[%clk 00:09:40]}
{[%emt 00:00:03]} 29. Qf1 {[%clk 00:12:04]} {[%emt 00:00:01]} Rxf1+ {[%clk
00:09:42]} {[%emt 00:00:03]} 30. Kxf1 {[%clk 00:12:07]} {[%emt 00:00:02]} Kf7
{[%clk 00:09:45]} {[%emt 00:00:01]} 31. Ke2 {[%clk 00:12:11]} {[%emt 00:00:02]}
Ke6 {[%clk 00:09:49]} 32. f4 {[%clk 00:12:15]} {[%emt 00:00:02]} Kf5 {[%clk
00:09:52]} {[%emt 00:00:02]} 33. g3 {[%clk 00:12:19]} {[%emt 00:00:01]} g5
{[%clk 00:09:54]} {[%emt 00:00:03]} 34. fxg5 {[%clk 00:12:22]} {[%emt
00:00:02]} fxg5 {[%clk 00:09:57]} {[%emt 00:00:02]} 35. Ke3 {[%clk 00:12:22]}
{[%emt 00:00:04]} Ke5 {[%clk 00:10:00]} {[%emt 00:00:02]} 36. g4 {[%clk
00:12:24]} {[%emt 00:00:03]} Bc5+ {[%clk 00:09:57]} {[%emt 00:00:07]} 37. Kf3
{[%clk 00:12:24]} {[%emt 00:00:05]} Be7 {[%clk 00:09:56]} {[%emt 00:00:06]} 38.
Ke3 {[%clk 00:12:24]} {[%emt 00:00:06]} Kf6 {[%clk 00:09:56]} {[%emt 00:00:06]}
39. Ke4 {[%clk 00:12:24]} {[%emt 00:00:05]} Kg6 {[%clk 00:09:58]} {[%emt
00:00:03]} 40. h3 {[%clk 00:12:23]} {[%emt 00:00:05]} h5 {[%clk 00:09:44]}
{[%emt 00:00:20]} 41. gxh5+ {[%clk 00:12:17]} {[%emt 00:00:10]} Kxh5 {[%clk
00:09:43]} {[%emt 00:00:05]} 42. Kf3 {[%clk 00:12:20]} {[%emt 00:00:03]} Kh4
{[%clk 00:09:46]} {[%emt 00:00:02]} 43. Kg2 {[%clk 00:12:23]} {[%emt 00:00:02]}
Bd6 {[%clk 00:09:49]} {[%emt 00:00:02]} 44. Kf3 {[%clk 00:12:21]} {[%emt
00:00:07]} Kxh3 {[%clk 00:09:51]} {[%emt 00:00:03]} 45. Kf2 {[%clk 00:12:24]}
{[%emt 00:00:03]} Bh2 {[%clk 00:09:46]} {[%emt 00:00:09]} 46. Kf1 {[%clk
00:12:27]} {[%emt 00:00:03]} g4 {[%clk 00:09:49]} {[%emt 00:00:01]} 47. Kf2
{[%clk 00:12:24]} {[%emt 00:00:08]} g3+ {[%clk 00:09:50]} {[%emt 00:00:04]} 0-1